[Event "*** Titled Tuesday 3|2 Blitz"]
[Site "Chess.com"]
[Date "2016.09.06"]
[Round "2"]
[White "Quiet_Desperation"]
[Black "Gordima"]
[Result "0-1"]
[WhiteElo "2252"]
[BlackElo "2523"]
[TimeControl "180+2"]
[EndTime "11:22:58 PDT"]
[Termination "Gordima won by resignation"]

1. e4 {[%clk 0:03:01.9]} 1... c5 {[%clk 0:03:00.7]} 2. Nf3 {[%clk 0:03:01.5]}
2... d6 {[%clk 0:03:02.1]} 3. d4 {[%clk 0:03:02.7]} 3... cxd4 {[%clk 0:03:04]}
4. Nxd4 {[%clk 0:03:04.4]} 4... Nf6 {[%clk 0:03:05.6]} 5. Nc3 {[%clk 0:03:06]}
5... a6 {[%clk 0:03:07.1]} 6. Be3 {[%clk 0:03:07.6]} 6... e5 {[%clk 0:03:07.5]}
7. Nb3 {[%clk 0:03:08.8]} 7... Be6 {[%clk 0:03:07.2]} 8. f3 {[%clk 0:03:10.2]}
8... h5 {[%clk 0:03:07.5]} 9. Qd2 {[%clk 0:03:10.3]} 9... Nbd7 {[%clk
0:03:08.2]} 10. O-O-O {[%clk 0:03:10.7]} 10... Be7 {[%clk 0:03:09.1]} 11. Nd5
{[%clk 0:03:11.8]} 11... Bxd5 {[%clk 0:03:00.2]} 12. exd5 {[%clk 0:03:11.1]}
12... Nb6 {[%clk 0:02:59.9]} 13. Bxb6 {[%clk 0:03:09.9]} 13... Qxb6 {[%clk
0:03:00.5]} 14. Kb1 {[%clk 0:03:11.4]} 14... Qc7 {[%clk 0:02:41.8]} 15. c4
{[%clk 0:03:11.5]} 15... a5 {[%clk 0:02:39]} 16. Nc1 {[%clk 0:03:11.1]} 16...
O-O {[%clk 0:02:31.9]} 17. Be2 {[%clk 0:03:10.6]} 17... a4 {[%clk 0:02:26.2]}
18. h4 {[%clk 0:03:05.5]} 18... Rac8 {[%clk 0:01:52.8]} 19. g4 {[%clk
0:03:00.9]} 19... hxg4 {[%clk 0:01:51.7]} 20. fxg4 {[%clk 0:02:37.6]} 20... a3
{[%clk 0:01:52.7]} 21. b3 {[%clk 0:02:37.9]} 21... b5 {[%clk 0:01:49.1]} 22. g5
{[%clk 0:02:29.9]} 22... Ne4 {[%clk 0:01:49.2]} 23. Qe3 {[%clk 0:02:26.1]} 23...
Nc5 {[%clk 0:01:08.8]} 24. h5 {[%clk 0:02:12.7]} 24... bxc4 {[%clk 0:01:09.8]}
25. Bxc4 {[%clk 0:02:13.3]} 25... Qd7 {[%clk 0:01:00.1]} 26. Rdf1 {[%clk
0:01:47]} 26... Qg4 {[%clk 0:00:55.3]} 27. g6 {[%clk 0:01:14.2]} 27... f5 {[%clk
0:00:50.3]} 28. h6 {[%clk 0:01:07.1]} 28... Qe4+ {[%clk 0:00:50.3]} 29. Qxe4
{[%clk 0:01:06.4]} 29... Nxe4 {[%clk 0:00:51.9]} 30. hxg7 {[%clk 0:01:07.3]}
30... Kxg7 {[%clk 0:00:25.4]} 31. Rh7+ {[%clk 0:01:06.4]} 31... Kf6 {[%clk
0:00:21.8]} 32. g7 {[%clk 0:00:57.4]} 32... Nd2+ {[%clk 0:00:11.4]} 33. Kc2
{[%clk 0:00:57.2]} 33... Nxf1 {[%clk 0:00:12.5]} 34. gxf8=Q+ {[%clk 0:00:58.6]}
34... Bxf8 {[%clk 0:00:12.7]} 35. Kd3 {[%clk 0:00:45.3]} 35... e4+ {[%clk
0:00:13.8]} 36. Ke2 {[%clk 0:00:45.3]} 36... Ng3+ {[%clk 0:00:14.8]} 37. Kf2
{[%clk 0:00:45.1]} 37... f4 {[%clk 0:00:14.6]} 38. Ne2 {[%clk 0:00:43.9]} 38...
Nxe2 {[%clk 0:00:15.4]} 39. Kxe2 {[%clk 0:00:45]} 39... Ke5 {[%clk 0:00:14.6]}
40. Ra7 {[%clk 0:00:42.2]} 40... Kd4 {[%clk 0:00:14.9]} 41. Rxa3 {[%clk
0:00:43.1]} 41... f3+ {[%clk 0:00:16.2]} 42. Kf2 {[%clk 0:00:43.4]} 42... Bh6
{[%clk 0:00:16.4]} 43. Ra4 {[%clk 0:00:42.9]} 43... Be3+ {[%clk 0:00:15.9]} 44.
Kf1 {[%clk 0:00:42.9]} 44... Rg8 {[%clk 0:00:14.1]} 45. Ke1 {[%clk 0:00:30.1]}
45... Rg1+ {[%clk 0:00:10.8]} 46. Bf1+ {[%clk 0:00:31.3]} 46... Ke5 {[%clk
0:00:12.4]} 47. Rc4 {[%clk 0:00:29.4]} 47... Bd4 {[%clk 0:00:12.8]} 48. b4
{[%clk 0:00:28.7]} 48... e3 {[%clk 0:00:13.6]} 0-1

[Event "*** Titled Tuesday 3|2 Blitz"]
[Site "Chess.com"]
[Date "2016.09.06"]
[Round "2"]
[White "pedromartinez91"]
[Black "SCIM"]
[Result "1-0"]
[WhiteElo "2395"]
[BlackElo "2244"]
[TimeControl "180+2"]
[EndTime "11:23:20 PDT"]
[Termination "pedromartinez91 won by resignation"]

1. e4 {[%clk 0:03:01.9]} 1... c5 {[%clk 0:02:59.9]} 2. Nf3 {[%clk 0:03:02]} 2...
e6 {[%clk 0:03:00.6]} 3. c3 {[%clk 0:03:01.4]} 3... Nf6 {[%clk 0:02:59.3]} 4. e5
{[%clk 0:03:02.8]} 4... Nd5 {[%clk 0:03:00.3]} 5. d4 {[%clk 0:03:04.3]} 5...
cxd4 {[%clk 0:03:01.7]} 6. cxd4 {[%clk 0:03:03.7]} 6... d6 {[%clk 0:03:02.8]} 7.
Nc3 {[%clk 0:03:03.3]} 7... Nxc3 {[%clk 0:03:02.1]} 8. bxc3 {[%clk 0:03:03.8]}
8... Qc7 {[%clk 0:03:02.6]} 9. Bd2 {[%clk 0:03:04.2]} 9... Nc6 {[%clk
0:03:01.3]} 10. Bd3 {[%clk 0:02:49]} 10... dxe5 {[%clk 0:02:54.1]} 11. O-O
{[%clk 0:02:49.8]} 11... exd4 {[%clk 0:02:44.6]} 12. cxd4 {[%clk 0:02:50.6]}
12... Be7 {[%clk 0:02:45.4]} 13. Qe2 {[%clk 0:02:44.7]} 13... O-O {[%clk
0:02:40.2]} 14. Rac1 {[%clk 0:02:39.6]} 14... Bd7 {[%clk 0:02:36.9]} 15. d5
{[%clk 0:02:39.2]} 15... Rfd8 {[%clk 0:02:18.7]} 16. dxc6 {[%clk 0:02:34.9]}
16... Bxc6 {[%clk 0:02:19.7]} 17. Ne5 {[%clk 0:02:28.9]} 17... Bf6 {[%clk
0:01:47.5]} 18. Nxc6 {[%clk 0:02:24.5]} 18... bxc6 {[%clk 0:01:47.8]} 19. Qe4
{[%clk 0:02:14.3]} 19... g6 {[%clk 0:01:48]} 20. Be3 {[%clk 0:02:05.7]} 20...
Rac8 {[%clk 0:01:38]} 21. Ba6 {[%clk 0:02:05.7]} 21... Rb8 {[%clk 0:01:35]} 22.
Qxc6 {[%clk 0:02:06.1]} 22... Qa5 {[%clk 0:01:33.2]} 23. Bxa7 {[%clk 0:02:02.6]}
23... Ra8 {[%clk 0:01:21.7]} 24. Bb6 {[%clk 0:01:50.9]} 24... Qxa6 {[%clk
0:01:13.3]} 25. Bxd8 {[%clk 0:01:51.9]} 25... Qxc6 {[%clk 0:01:14.1]} 26. Rxc6
{[%clk 0:01:53.3]} 26... Bxd8 {[%clk 0:01:15.8]} 27. Rfc1 {[%clk 0:01:54.6]}
27... Rxa2 {[%clk 0:01:09.4]} 28. Rd1 {[%clk 0:01:27.6]} 28... Kg7 {[%clk
0:01:06.3]} 29. g3 {[%clk 0:01:26.9]} 29... Ra8 {[%clk 0:00:51.4]} 30. Rd7
{[%clk 0:01:24.9]} 30... Kf6 {[%clk 0:00:46.8]} 31. h4 {[%clk 0:01:24.8]} 31...
h5 {[%clk 0:00:47.3]} 32. Kg2 {[%clk 0:01:25.5]} 32... Ba5 {[%clk 0:00:41.7]}
33. Rc4 {[%clk 0:01:22.5]} 33... Rf8 {[%clk 0:00:36.2]} 34. Rf4+ {[%clk
0:01:19]} 34... Kg7 {[%clk 0:00:36.9]} 35. Re4 {[%clk 0:01:20]} 35... Re8 {[%clk
0:00:33.5]} 36. f3 {[%clk 0:01:19.2]} 36... Bc3 {[%clk 0:00:33.3]} 37. g4 {[%clk
0:01:19.7]} 37... hxg4 {[%clk 0:00:34.2]} 38. fxg4 {[%clk 0:01:20.6]} 38... Bf6
{[%clk 0:00:35.1]} 39. g5 {[%clk 0:01:20.2]} 39... Bc3 {[%clk 0:00:34.4]} 40.
Kf3 {[%clk 0:01:20.7]} 40... e5 {[%clk 0:00:29.6]} 41. Rc4 {[%clk 0:01:19.3]}
41... Be1 {[%clk 0:00:23.6]} 42. Re4 {[%clk 0:01:12.8]} 42... Bc3 {[%clk
0:00:22.3]} 43. Rd3 {[%clk 0:01:12.7]} 43... Bb2 {[%clk 0:00:21.6]} 44. Rb3
{[%clk 0:01:13.1]} 44... Bd4 {[%clk 0:00:22.3]} 45. Rb7 {[%clk 0:01:11]} 45...
Ra8 {[%clk 0:00:22.5]} 46. Re1 {[%clk 0:01:04.8]} 46... Ra3+ {[%clk 0:00:22.8]}
47. Ke4 {[%clk 0:01:05.6]} 47... Bf2 {[%clk 0:00:10.7]} 48. Rf1 {[%clk
0:01:04.6]} 48... Ra2 {[%clk 0:00:10.4]} 49. Kxe5 {[%clk 0:01:03]} 49... Kg8
{[%clk 0:00:11.2]} 50. Kf6 {[%clk 0:01:00.4]} 50... Re2 {[%clk 0:00:09.3]} 51.
Rd1 {[%clk 0:00:57.4]} 51... Bc5 {[%clk 0:00:07.3]} 52. Rd8+ {[%clk 0:00:55.6]}
52... Bf8 {[%clk 0:00:07.7]} 53. Rxf8+ {[%clk 0:00:56.6]} 53... Kxf8 {[%clk
0:00:08.6]} 54. Rxf7+ {[%clk 0:00:58.2]} 54... Kg8 {[%clk 0:00:09.8]} 55. Rg7+
{[%clk 0:00:59.3]} 55... Kh8 {[%clk 0:00:10.2]} 56. Ra7 {[%clk 0:00:57.6]} 56...
Re7 {[%clk 0:00:07.6]} 57. Rxe7 {[%clk 0:00:55.8]} 1-0

[Event "*** Titled Tuesday 3|2 Blitz"]
[Site "Chess.com"]
[Date "2016.09.06"]
[Round "2"]
[White "alturas_pacificas"]
[Black "GremioPrudente"]
[Result "1-0"]
[WhiteElo "2145"]
[BlackElo "2042"]
[TimeControl "180+2"]
[EndTime "11:23:58 PDT"]
[Termination "alturas_pacificas won by checkmate"]

1. d4 {[%clk 0:03:01.9]} 1... d5 {[%clk 0:02:56.7]} 2. Bf4 {[%clk 0:03:02.1]}
2... c6 {[%clk 0:02:56.7]} 3. e3 {[%clk 0:03:02.1]} 3... Qb6 {[%clk 0:02:56.5]}
4. b3 {[%clk 0:03:02]} 4... Bf5 {[%clk 0:02:56.1]} 5. Bd3 {[%clk 0:03:01.6]}
5... Bxd3 {[%clk 0:02:55.3]} 6. Qxd3 {[%clk 0:03:01.4]} 6... e6 {[%clk
0:02:56.7]} 7. Nf3 {[%clk 0:03:01.7]} 7... Nf6 {[%clk 0:02:56.8]} 8. O-O {[%clk
0:03:01.8]} 8... Nbd7 {[%clk 0:02:56.4]} 9. c4 {[%clk 0:03:00.1]} 9... Nh5
{[%clk 0:02:37.8]} 10. Be5 {[%clk 0:02:51.2]} 10... f6 {[%clk 0:02:34.2]} 11.
Bg3 {[%clk 0:02:50.6]} 11... Nxg3 {[%clk 0:02:34.5]} 12. hxg3 {[%clk 0:02:51.8]}
12... Qd8 {[%clk 0:02:28.5]} 13. e4 {[%clk 0:02:42.4]} 13... Be7 {[%clk
0:02:18.3]} 14. Nc3 {[%clk 0:02:38.9]} 14... dxc4 {[%clk 0:02:19.2]} 15. Qxc4
{[%clk 0:02:11.7]} 15... Nf8 {[%clk 0:01:53.3]} 16. Rfd1 {[%clk 0:02:04.6]}
16... Qd7 {[%clk 0:01:45.6]} 17. d5 {[%clk 0:01:58.6]} 17... cxd5 {[%clk
0:01:41.8]} 18. exd5 {[%clk 0:01:55.4]} 18... Rc8 {[%clk 0:01:39.3]} 19. Qd3
{[%clk 0:01:28.3]} 19... Bb4 {[%clk 0:01:32.4]} 20. Rac1 {[%clk 0:01:20.9]}
20... Bxc3 {[%clk 0:01:30.4]} 21. Rxc3 {[%clk 0:01:21.2]} 21... Rxc3 {[%clk
0:01:31.2]} 22. Qxc3 {[%clk 0:01:21.1]} 22... exd5 {[%clk 0:01:31.6]} 23. Qc5
{[%clk 0:01:12]} 23... Ne6 {[%clk 0:01:27.9]} 24. Qxa7 {[%clk 0:00:49.9]} 24...
Kf7 {[%clk 0:01:16.6]} 25. Nd4 {[%clk 0:00:42.3]} 25... Nxd4 {[%clk 0:01:09]}
26. Rxd4 {[%clk 0:00:43.2]} 26... Rd8 {[%clk 0:01:07.3]} 27. Rb4 {[%clk
0:00:42.2]} 27... b5 {[%clk 0:00:41.4]} 28. Qxd7+ {[%clk 0:00:37.2]} 28... Rxd7
{[%clk 0:00:42.1]} 29. Rxb5 {[%clk 0:00:38.8]} 29... d4 {[%clk 0:00:41.7]} 30.
Rc5 {[%clk 0:00:40]} 30... Ra7 {[%clk 0:00:37]} 31. Rc2 {[%clk 0:00:39.7]} 31...
Ke6 {[%clk 0:00:36.1]} 32. Kf1 {[%clk 0:00:40.5]} 32... Kd5 {[%clk 0:00:35.9]}
33. Ke2 {[%clk 0:00:41.7]} 33... f5 {[%clk 0:00:34.3]} 34. Kd3 {[%clk
0:00:40.1]} 34... g6 {[%clk 0:00:31.9]} 35. Re2 {[%clk 0:00:40.7]} 35... Rc7
{[%clk 0:00:27.6]} 36. Rc2 {[%clk 0:00:40]} 36... Ra7 {[%clk 0:00:21.5]} 37. b4
{[%clk 0:00:38.9]} 37... Ra3+ {[%clk 0:00:21.2]} 38. Kd2 {[%clk 0:00:40.1]}
38... d3 {[%clk 0:00:15.5]} 39. Rb2 {[%clk 0:00:36.4]} 39... Kc6 {[%clk
0:00:10.5]} 40. b5+ {[%clk 0:00:37.6]} 40... Kb6 {[%clk 0:00:10.6]} 41. f3
{[%clk 0:00:35.8]} 41... g5 {[%clk 0:00:11.3]} 42. Ke3 {[%clk 0:00:29.4]} 42...
h6 {[%clk 0:00:07.5]} 43. Kd4 {[%clk 0:00:29.5]} 43... f4 {[%clk 0:00:02.5]} 44.
gxf4 {[%clk 0:00:30.1]} 44... gxf4 {[%clk 0:00:03.7]} 45. Ke4 {[%clk 0:00:29.5]}
45... h5 {[%clk 0:00:03.9]} 46. Kxf4 {[%clk 0:00:30.2]} 46... h4 {[%clk
0:00:03.9]} 47. Kg4 {[%clk 0:00:30.9]} 47... h3 {[%clk 0:00:04.4]} 48. Kxh3
{[%clk 0:00:32.1]} 48... d2 {[%clk 0:00:06.3]} 49. Rxd2 {[%clk 0:00:32.5]} 49...
Kxb5 {[%clk 0:00:08.2]} 50. Kg4 {[%clk 0:00:34]} 50... Kc4 {[%clk 0:00:09]} 51.
f4 {[%clk 0:00:35.2]} 51... Kc5 {[%clk 0:00:10.9]} 52. Kg5 {[%clk 0:00:35.3]}
52... Kc6 {[%clk 0:00:12.8]} 53. g4 {[%clk 0:00:35.9]} 53... Ra8 {[%clk
0:00:14.7]} 54. f5 {[%clk 0:00:37]} 54... Rg8+ {[%clk 0:00:16.6]} 55. Kf4 {[%clk
0:00:38.5]} 55... Rf8 {[%clk 0:00:18.5]} 56. g5 {[%clk 0:00:39.9]} 56... Ra8
{[%clk 0:00:20.4]} 57. g6 {[%clk 0:00:41.2]} 57... Ra4+ {[%clk 0:00:22.3]} 58.
Kg5 {[%clk 0:00:42.7]} 58... Ra3 {[%clk 0:00:23.2]} 59. g7 {[%clk 0:00:43.4]}
59... Rg3+ {[%clk 0:00:25.1]} 60. Kf6 {[%clk 0:00:44.9]} 60... Rg1 {[%clk
0:00:26.1]} 61. Kf7 {[%clk 0:00:46.2]} 61... Rg5 {[%clk 0:00:26.8]} 62. f6
{[%clk 0:00:46.6]} 62... Rf5 {[%clk 0:00:28.7]} 63. g8=Q {[%clk 0:00:46.5]}
63... Kc5 {[%clk 0:00:30.5]} 64. Qc8+ {[%clk 0:00:45.2]} 64... Kb4 {[%clk
0:00:30.6]} 65. Rb2+ {[%clk 0:00:44.7]} 65... Ka3 {[%clk 0:00:30.8]} 66. Qc3+
{[%clk 0:00:45.6]} 66... Ka4 {[%clk 0:00:31]} 67. Qb4# {[%clk 0:00:46.8]} 1-0

[Event "*** Titled Tuesday 3|2 Blitz"]
[Site "Chess.com"]
[Date "2016.09.06"]
[Round "2"]
[White "OparinGrigoriy"]
[Black "Alexander_Donchenko"]
[Result "0-1"]
[WhiteElo "2597"]
[BlackElo "2503"]
[TimeControl "180+2"]
[EndTime "11:25:15 PDT"]
[Termination "Alexander_Donchenko won by resignation"]

1. e4 {[%clk 0:03:02]} 1... c5 {[%clk 0:03:00.9]} 2. Nf3 {[%clk 0:03:02.5]} 2...
d6 {[%clk 0:03:02.2]} 3. d4 {[%clk 0:03:04]} 3... cxd4 {[%clk 0:03:03.7]} 4.
Nxd4 {[%clk 0:03:05.9]} 4... Nf6 {[%clk 0:03:05.2]} 5. Nc3 {[%clk 0:03:07.7]}
5... a6 {[%clk 0:03:06.8]} 6. h3 {[%clk 0:03:09.2]} 6... e5 {[%clk 0:03:07.9]}
7. Nb3 {[%clk 0:03:08.7]} 7... Be7 {[%clk 0:03:07.7]} 8. Be3 {[%clk 0:03:06.4]}
8... Be6 {[%clk 0:03:08.2]} 9. f4 {[%clk 0:03:07.6]} 9... exf4 {[%clk
0:03:08.5]} 10. Bxf4 {[%clk 0:03:08.9]} 10... Nc6 {[%clk 0:03:09.6]} 11. Qe2
{[%clk 0:03:10.6]} 11... Nd7 {[%clk 0:03:08.3]} 12. O-O-O {[%clk 0:03:12.2]}
12... Nce5 {[%clk 0:03:09.6]} 13. Kb1 {[%clk 0:03:12.6]} 13... O-O {[%clk
0:03:10.3]} 14. g4 {[%clk 0:03:13.4]} 14... Rc8 {[%clk 0:03:11.5]} 15. Qe3
{[%clk 0:03:14.9]} 15... Qc7 {[%clk 0:02:58.9]} 16. Nd4 {[%clk 0:03:15.5]} 16...
Nb6 {[%clk 0:02:49.3]} 17. Qg3 {[%clk 0:02:55.2]} 17... g6 {[%clk 0:02:47]} 18.
Rh2 {[%clk 0:02:53]} 18... Rfe8 {[%clk 0:02:40.4]} 19. g5 {[%clk 0:02:46]} 19...
Nbc4 {[%clk 0:02:37.4]} 20. Nxe6 {[%clk 0:02:29.3]} 20... fxe6 {[%clk 0:02:34]}
21. h4 {[%clk 0:02:30.9]} 21... Bf8 {[%clk 0:02:02.6]} 22. h5 {[%clk 0:02:21]}
22... Nxb2 {[%clk 0:01:42.4]} 23. Kxb2 {[%clk 0:01:57.1]} 23... Bg7 {[%clk
0:01:42.9]} 24. Kc1 {[%clk 0:01:52.2]} 24... Qxc3 {[%clk 0:01:25.4]} 25. Qxc3
{[%clk 0:01:50.8]} 25... Rxc3 {[%clk 0:01:27.3]} 26. hxg6 {[%clk 0:01:45.6]}
26... hxg6 {[%clk 0:01:25.6]} 27. Rh3 {[%clk 0:01:34]} 27... Rec8 {[%clk
0:01:21.2]} 28. Rxc3 {[%clk 0:01:15.3]} 28... Rxc3 {[%clk 0:01:23.1]} 29. Be2
{[%clk 0:00:51.7]} 29... Rc6 {[%clk 0:01:21.6]} 30. Kd2 {[%clk 0:00:52]} 30...
Nc4+ {[%clk 0:01:09]} 31. Bxc4 {[%clk 0:00:52.6]} 31... Rxc4 {[%clk 0:01:10.9]}
32. Bxd6 {[%clk 0:00:53.8]} 32... Rxe4 {[%clk 0:01:11.1]} 33. c3 {[%clk
0:00:39.2]} 33... Rg4 {[%clk 0:01:04.8]} 34. Re1 {[%clk 0:00:40]} 34... Kf7
{[%clk 0:00:43.6]} 35. Rf1+ {[%clk 0:00:17.5]} 35... Ke8 {[%clk 0:00:44.8]} 36.
Bf4 {[%clk 0:00:18.9]} 36... Rg2+ {[%clk 0:00:43.2]} 37. Kd3 {[%clk 0:00:20.2]}
37... Rxa2 {[%clk 0:00:43.6]} 38. Bd2 {[%clk 0:00:19]} 38... Ra5 {[%clk
0:00:40.7]} 39. Rb1 {[%clk 0:00:20.6]} 39... Rb5 {[%clk 0:00:37.7]} 40. Re1
{[%clk 0:00:20.7]} 40... Kd7 {[%clk 0:00:36]} 41. Rh1 {[%clk 0:00:21.9]} 41...
Ke7 {[%clk 0:00:30.9]} 42. Rh7 {[%clk 0:00:19.8]} 42... Kf8 {[%clk 0:00:31.9]}
43. Rh4 {[%clk 0:00:19.7]} 43... Rd5+ {[%clk 0:00:31.6]} 44. Kc2 {[%clk
0:00:20.3]} 44... Rf5 {[%clk 0:00:25]} 45. Rc4 {[%clk 0:00:19.8]} 45... Be5
{[%clk 0:00:21.9]} 46. Rc8+ {[%clk 0:00:18.5]} 46... Ke7 {[%clk 0:00:23.4]} 47.
Rg8 {[%clk 0:00:18.7]} 47... Kf7 {[%clk 0:00:24.8]} 48. Rd8 {[%clk 0:00:19.9]}
48... Rf2 {[%clk 0:00:10.9]} 49. Kd3 {[%clk 0:00:20]} 49... Ke7 {[%clk
0:00:08.4]} 50. Rg8 {[%clk 0:00:20.6]} 50... Kf7 {[%clk 0:00:07.3]} 51. Rd8
{[%clk 0:00:21.7]} 51... b5 {[%clk 0:00:08.3]} 52. Rd7+ {[%clk 0:00:22.5]} 52...
Ke8 {[%clk 0:00:09.4]} 53. Ra7 {[%clk 0:00:23.3]} 53... Bf4 {[%clk 0:00:06.9]}
54. Be1 {[%clk 0:00:09.6]} 54... Rf1 {[%clk 0:00:06.8]} 55. Ke2 {[%clk
0:00:09.6]} 55... Rh1 {[%clk 0:00:07.9]} 56. Rxa6 {[%clk 0:00:11.2]} 56... Kd7
{[%clk 0:00:08.7]} 57. Ra7+ {[%clk 0:00:12.3]} 57... Kc6 {[%clk 0:00:09.6]} 58.
Rg7 {[%clk 0:00:13]} 58... Bxg5 {[%clk 0:00:05.3]} 59. Rxg6 {[%clk 0:00:14.4]}
59... Bf4 {[%clk 0:00:05.5]} 60. Rxe6+ {[%clk 0:00:15.8]} 60... Kd5 {[%clk
0:00:06.7]} 61. Rf6 {[%clk 0:00:17.3]} 61... Be5 {[%clk 0:00:07.7]} 62. Rf5
{[%clk 0:00:18.4]} 62... Ke4 {[%clk 0:00:08.2]} 63. Rf2 {[%clk 0:00:16.6]} 63...
Rxe1+ {[%clk 0:00:08.7]} 64. Kd2 {[%clk 0:00:08.9]} 64... Ra1 {[%clk 0:00:07.8]}
65. Re2+ {[%clk 0:00:08.8]} 65... Kd5 {[%clk 0:00:09.1]} 66. Kd3 {[%clk
0:00:10.4]} 66... Ra3 {[%clk 0:00:09.2]} 67. Rc2 {[%clk 0:00:12]} 67... b4
{[%clk 0:00:08.1]} 68. Kd2 {[%clk 0:00:13]} 68... Rxc3 {[%clk 0:00:09.1]} 69.
Ra2 {[%clk 0:00:12.6]} 69... Ra3 {[%clk 0:00:09.4]} 70. Rc2 {[%clk 0:00:08.1]}
70... b3 {[%clk 0:00:10.7]} 71. Rc1 {[%clk 0:00:03.7]} 71... Bf4+ {[%clk
0:00:11.8]} 72. Kc3 {[%clk 0:00:04.5]} 72... Bxc1 {[%clk 0:00:12.5]} 73. Kb4
{[%clk 0:00:06.4]} 0-1

[Event "*** Titled Tuesday 3|2 Blitz"]
[Site "Chess.com"]
[Date "2016.09.06"]
[Round "3"]
[White "WinnieTPooh"]
[Black "Sinquefield"]
[Result "0-1"]
[WhiteElo "1826"]
[BlackElo "2028"]
[TimeControl "180+2"]
[EndTime "11:29:56 PDT"]
[Termination "Sinquefield won by resignation"]

1. d4 {[%clk 0:02:57]} 1... Nf6 {[%clk 0:02:57.2]} 2. c4 {[%clk 0:02:50.3]} 2...
d6 {[%clk 0:02:53.9]} 3. Nf3 {[%clk 0:02:49.4]} 3... g6 {[%clk 0:02:52.1]} 4.
Nc3 {[%clk 0:02:48]} 4... Bg7 {[%clk 0:02:53.4]} 5. e4 {[%clk 0:02:49.2]} 5...
O-O {[%clk 0:02:53.4]} 6. Be2 {[%clk 0:02:50.3]} 6... e5 {[%clk 0:02:54.3]} 7.
O-O {[%clk 0:02:50.7]} 7... exd4 {[%clk 0:02:55.2]} 8. Nxd4 {[%clk 0:02:52.6]}
8... Re8 {[%clk 0:02:54.6]} 9. f3 {[%clk 0:02:51.3]} 9... c6 {[%clk 0:02:55.9]}
10. Bg5 {[%clk 0:02:37.1]} 10... h6 {[%clk 0:02:54.7]} 11. Bh4 {[%clk 0:02:37]}
11... Nbd7 {[%clk 0:02:50.9]} 12. Qd2 {[%clk 0:02:31]} 12... Nxe4 {[%clk
0:02:46]} 13. Bxd8 {[%clk 0:02:27.1]} 13... Nxd2 {[%clk 0:02:46.5]} 14. Nc2
{[%clk 0:01:52.2]} 14... Bxc3 {[%clk 0:02:43.4]} 15. bxc3 {[%clk 0:01:51.3]}
15... Rxe2 {[%clk 0:02:44.1]} 16. Nd4 {[%clk 0:01:40.2]} 16... Re8 {[%clk
0:02:35.3]} 17. Bh4 {[%clk 0:01:39.8]} 17... Nxf1 {[%clk 0:02:35.3]} 0-1

[Event "*** Titled Tuesday 3|2 Blitz"]
[Site "Chess.com"]
[Date "2016.09.06"]
[Round "3"]
[White "Keranke"]
[Black "Pudor"]
[Result "1-0"]
[WhiteElo "2549"]
[BlackElo "2369"]
[TimeControl "180+2"]
[EndTime "11:30:19 PDT"]
[Termination "Keranke won by resignation"]

1. d4 {[%clk 0:03:02]} 1... Nf6 {[%clk 0:03:00.6]} 2. c4 {[%clk 0:03:02.9]} 2...
d6 {[%clk 0:03:01.9]} 3. g3 {[%clk 0:03:04.2]} 3... Nbd7 {[%clk 0:03:03.2]} 4.
Bg2 {[%clk 0:03:05.4]} 4... e5 {[%clk 0:03:04.7]} 5. Nf3 {[%clk 0:03:06.8]} 5...
g6 {[%clk 0:03:05.8]} 6. O-O {[%clk 0:03:08]} 6... Bg7 {[%clk 0:03:07.1]} 7. Nc3
{[%clk 0:03:09.6]} 7... O-O {[%clk 0:03:08.2]} 8. e4 {[%clk 0:03:11.1]} 8...
exd4 {[%clk 0:03:08.7]} 9. Nxd4 {[%clk 0:03:12]} 9... Re8 {[%clk 0:03:10.1]} 10.
Re1 {[%clk 0:03:12.1]} 10... c6 {[%clk 0:03:09.8]} 11. h3 {[%clk 0:03:09.3]}
11... Qe7 {[%clk 0:03:06.1]} 12. Be3 {[%clk 0:03:09.4]} 12... a5 {[%clk
0:03:06.6]} 13. Qc2 {[%clk 0:03:10.3]} 13... Nc5 {[%clk 0:03:07.5]} 14. Rad1
{[%clk 0:03:11.4]} 14... a4 {[%clk 0:03:07]} 15. Bf4 {[%clk 0:03:08.8]} 15...
Nfd7 {[%clk 0:02:22.7]} 16. b4 {[%clk 0:02:45.1]} 16... axb3 {[%clk 0:02:24.6]}
17. axb3 {[%clk 0:02:47]} 17... Ne5 {[%clk 0:02:24]} 18. Kh2 {[%clk 0:02:44.7]}
18... h5 {[%clk 0:02:23.4]} 19. Be3 {[%clk 0:02:39.7]} 19... h4 {[%clk
0:02:03.9]} 20. g4 {[%clk 0:02:39.7]} 20... g5 {[%clk 0:01:59.8]} 21. Nf5 {[%clk
0:02:37.5]} 21... Bxf5 {[%clk 0:02:00.1]} 22. exf5 {[%clk 0:02:39.2]} 22... Qf6
{[%clk 0:01:55.5]} 23. b4 {[%clk 0:02:33.1]} 23... Ra3 {[%clk 0:01:49.7]} 24.
Nb1 {[%clk 0:02:20]} 24... Na6 {[%clk 0:01:41.3]} 25. Nxa3 {[%clk 0:02:20]}
25... Nxb4 {[%clk 0:01:40.8]} 26. Qb3 {[%clk 0:02:20.4]} 26... c5 {[%clk
0:01:35.9]} 27. Nb5 {[%clk 0:02:20.3]} 1-0

[Event "*** Titled Tuesday 3|2 Blitz"]
[Site "Chess.com"]
[Date "2016.09.06"]
[Round "3"]
[White "Mepetmepe"]
[Black "Misha_Bilous"]
[Result "0-1"]
[WhiteElo "2324"]
[BlackElo "2369"]
[TimeControl "180+2"]
[EndTime "11:30:51 PDT"]
[Termination "Misha_Bilous won by resignation"]

1. d4 {[%clk 0:03:01.9]} 1... Nf6 {[%clk 0:03:00.2]} 2. c4 {[%clk 0:03:02.6]}
2... g6 {[%clk 0:03:01.2]} 3. Nc3 {[%clk 0:03:03.8]} 3... Bg7 {[%clk 0:03:02.4]}
4. e4 {[%clk 0:03:04.4]} 4... d6 {[%clk 0:03:03.9]} 5. Nf3 {[%clk 0:03:05.7]}
5... O-O {[%clk 0:03:05.5]} 6. h3 {[%clk 0:03:07.2]} 6... e5 {[%clk 0:03:06.5]}
7. d5 {[%clk 0:03:08.7]} 7... Nh5 {[%clk 0:03:00.3]} 8. g3 {[%clk 0:03:07.3]}
8... f5 {[%clk 0:02:49.1]} 9. exf5 {[%clk 0:03:09.2]} 9... gxf5 {[%clk
0:02:46.7]} 10. Nh4 {[%clk 0:03:10.8]} 10... Nf4 {[%clk 0:02:34.1]} 11. Bd2
{[%clk 0:02:59.8]} 11... Na6 {[%clk 0:02:27.8]} 12. a3 {[%clk 0:02:58.2]} 12...
Nc5 {[%clk 0:02:25.9]} 13. Qc2 {[%clk 0:02:59.6]} 13... a5 {[%clk 0:02:03.4]}
14. O-O-O {[%clk 0:03:00.8]} 14... a4 {[%clk 0:01:54.2]} 15. Kb1 {[%clk
0:03:01.7]} 15... Ng6 {[%clk 0:01:26]} 16. Ng2 {[%clk 0:02:53.6]} 16... f4
{[%clk 0:01:24.5]} 17. gxf4 {[%clk 0:02:41.4]} 17... Bf5 {[%clk 0:01:22.1]} 18.
h4 {[%clk 0:01:43.9]} 18... Bxc2+ {[%clk 0:01:20.4]} 19. Kxc2 {[%clk 0:01:45.8]}
19... Nxf4 {[%clk 0:01:21.5]} 20. Nxf4 {[%clk 0:01:44.2]} 20... exf4 {[%clk
0:01:22.3]} 21. h5 {[%clk 0:01:45.7]} 21... Qf6 {[%clk 0:01:20.6]} 22. Rg1
{[%clk 0:01:38.7]} 22... Qf5+ {[%clk 0:01:17.6]} 0-1